bitfinex-derivatives/quotes_SOLF0:USTF0_20251018
["timestamp","ask_amount","ask_price","bid_price","bid_amount"]
[1760822816184,4.8181,186.75,186.68,4.8195]
[1760822816379,2.69,186.74,186.68,4.8195]
[1760822816585,4.8181,186.75,186.68,4.8195]
[1760822817084,2.69,186.74,186.68,4.8195]
[1760822817286,2.69,186.73,186.66,11.49648138]
[1760822817984,2.69,186.72,186.66,4.8201]
[1760822818681,2.69,186.71,186.65,6.67638138]
[1760822822287,2.69,186.71,186.66,6.67638138]
[1760822822486,2.69,186.7,186.66,6.67638138]
[1760822823390,2.69,186.71,186.66,6.67638138]
[1760822823888,2.69,186.7,186.66,6.67638138]
[1760822825186,2.69,186.7,186.67,6.67638138]
[1760822826191,4.8188,186.72,186.67,6.67638138]
[1760822826390,2.69,186.7,186.67,6.67638138]
[1760822826592,4.8188,186.72,186.67,6.67638138]
[1760822826789,2.65,186.71,186.67,6.67638138]
[1760822827689,2.65,186.7,186.67,6.67638138]
[1760822828285,2.65,186.7,186.68,6.67638138]
[1760822829084,2.65,186.72,186.68,6.67638138]
[1760822829390,3.3377843,186.73,186.68,6.67638138]
[1760822830088,2.65,186.73,186.68,6.67638138]
[1760822830289,9.39937677,186.74,186.68,6.67638138]
[1760822830484,2.65,186.73,186.68,6.67638138]
[1760822830686,9.39937677,186.74,186.68,6.67638138]
[1760822830884,2.65,186.74,186.68,6.67638138]
[1760822831080,9.39920166,186.76,186.7,6.67638138]
[1760822831286,2.65,186.75,186.7,6.67638138]
[1760822831485,9.39920166,186.76,186.7,6.67638138]
[1760822831681,2.65,186.75,186.71,4.8188]
[1760822831884,120.20658394,186.8,186.71,6.67638138]
[1760822831885,2.65,186.78,186.71,6.67638138]
[1760822832082,4.58215674,186.78,186.72,6.67638138]
[1760822832287,2.65,186.78,186.72,6.67638138]
[1760822832486,7.23215674,186.78,186.72,6.67638138]
[1760822832690,2.65,186.78,186.72,6.67638138]
[1760822833092,7.23215674,186.78,186.72,11.49488138]
[1760822833387,2.65,186.78,186.72,11.49488138]
[1760822833592,2.65,186.78,186.73,6.67638138]
[1760822834998,2.65,186.78,186.73,11.49468138]
[1760822837593,4.8167,186.8,186.73,11.49468138]
[1760822837891,2.7,186.79,186.73,11.49468138]
[1760822838593,2.7,186.79,186.74,11.49438138]
[1760822839389,2.7,186.79,186.74,4.818]
[1760822839590,2.7,186.79,186.74,11.49438138]
[1760822840188,2.7,186.79,186.75,4.8178]
[1760822842391,7.27823595,186.82,186.75,4.8178]
[1760822842697,2.7,186.82,186.75,4.8178]
[1760822843396,2.7,186.82,186.75,11.49418138]
[1760822846998,2.7,186.82,186.76,11.49388138]
[1760822847195,2.7,186.82,186.76,4.8175]
[1760822851791,2.7,186.82,186.77,4.8172]
[1760822854498,8.1532843,186.85,186.77,4.8172]
[1760822854703,2.7,186.81,186.75,4.8178]
[1760822855208,2.7,186.81,186.76,4.8174]
[1760822855906,2.7,186.83,186.76,4.8174]
[1760822856101,2.7,186.82,186.76,4.8174]
[1760822856502,3.3377843,186.82,186.75,6.67638138]
[1760822856706,3.3377843,186.82,186.74,11.49448138]
[1760822856908,2.7,186.81,186.74,11.49448138]
[1760822857106,3.3377843,186.82,186.74,11.49448138]
[1760822857302,2.7,186.81,186.74,11.49448138]
[1760822857497,3.3377843,186.82,186.74,11.49448138]
[1760822857907,2.7,186.81,186.74,11.49448138]
[1760822858307,3.3377843,186.82,186.74,11.49448138]
[1760822858500,2.7,186.81,186.74,11.49448138]
[1760822858706,2.7,186.81,186.74,4.8181]
[1760822859114,3.3377843,186.82,186.74,4.8181]
[1760822859514,2.7,186.81,186.74,4.8181]
[1760822859714,3.3377843,186.82,186.74,4.8181]
[1760822859910,8.1539843,186.82,186.74,4.8181]
[1760822860110,2.7,186.81,186.74,4.8181]
[1760822860618,8.1539843,186.82,186.74,4.8181]
[1760822860814,2.7,186.81,186.74,4.8181]
[1760822861318,8.1539843,186.82,186.74,4.8181]
[1760822861819,2.7,186.81,186.74,4.8181]
[1760822862011,8.1539843,186.82,186.74,4.8181]
[1760822862216,2.7,186.8,186.74,4.8181]
[1760822865816,2.7,186.83,186.74,6.67638138]
[1760822866121,2.7,186.83,186.66,47.5577843]
[1760822866122,2.7,186.83,186.75,6.67638138]
[1760822866812,8.1532843,186.85,186.77,4.8172]
[1760822867711,2.61,186.84,186.77,4.8172]
[1760822867916,8.1532843,186.85,186.77,4.8172]
[1760822868516,2.61,186.84,186.77,4.8172]
[1760822868712,8.1532843,186.85,186.77,4.8172]
[1760822869320,2.61,186.84,186.77,4.8172]
[1760822869516,8.1532843,186.85,186.77,4.8172]
[1760822870720,2.61,186.84,186.77,4.8172]
[1760822870924,8.1532843,186.85,186.77,4.8172]
[1760822871423,2.61,186.84,186.77,4.8172]
[1760822871630,8.1532843,186.85,186.77,4.8172]
[1760822871823,2.61,186.84,186.77,4.8172]
[1760822872016,8.1532843,186.85,186.77,4.8172]
[1760822872722,2.61,186.84,186.77,4.8172]
[1760822873134,8.1532843,186.85,186.77,4.8172]
[1760822873623,2.61,186.84,186.77,4.8172]
[1760822874725,9.39627552,186.85,186.77,4.8172]
[1760822874923,2.61,186.84,186.77,4.8172]
[1760822875121,9.39627552,186.85,186.77,4.8172]
[1760822875330,9.39627552,186.85,186.77,11.49358138]
[1760822875825,2.61,186.84,186.77,11.49358138]
[1760822876025,9.39627552,186.85,186.77,11.49358138]
[1760822876419,2.61,186.84,186.77,11.49358138]
[1760822876622,9.39627552,186.85,186.77,11.49358138]
[1760822877023,2.61,186.84,186.77,11.49358138]
[1760822877228,9.39627552,186.85,186.77,11.49358138]
[1760822878321,2.61,186.83,186.77,11.49358138]
[1760822881633,2.61,186.83,186.78,6.67638138]
[1760822881838,2.61,186.84,186.78,6.67638138]
[1760822882538,2.61,186.83,186.79,6.67638138]
[1760822883638,2.61,186.84,186.79,6.67638138]
[1760822883834,4.8155,186.85,186.79,6.67638138]
[1760822884040,2.61,186.84,186.79,6.67638138]
[1760822884337,2.61,186.83,186.79,6.67638138]
[1760822884538,2.61,186.84,186.79,6.67638138]
[1760822884842,2.61,186.83,186.79,6.67638138]
[1760822885140,2.61,186.84,186.79,6.67638138]
[1760822885343,2.61,186.83,186.79,6.67638138]
[1760822885541,2.61,186.82,186.79,6.67638138]
[1760822886037,4.8155,186.85,186.79,6.4757784]
[1760822886038,5.9477843,186.8,186.79,6.4757784]
[1760822886244,7.91423285,186.8,186.69,10.01457207]
[1760822886442,2.74,186.74,186.7,10.01457207]
[1760822886635,6.0777843,186.75,186.69,10.01457207]
[1760822887141,3.3377843,186.72,186.66,10.01457207]
[1760822887444,2.74,186.71,186.65,4.8204]
[1760822888733,2.74,186.71,186.63,4.8209]
[1760822888941,6.0777843,186.69,186.61,10.01457207]
[1760822889343,6.0777843,186.69,186.56,260.2563154]
[1760822889344,6.0777843,186.69,186.6,10.01457207]
[1760822890040,6.0777843,186.69,186.61,4.8215]
[1760822890436,2.74,186.69,186.61,4.8215]
[1760822891038,2.74,186.69,186.6,10.01457207]
[1760822891244,2.74,186.69,186.59,10.01457207]
[1760822891945,2.74,186.69,186.59,14.83637207]
[1760822892445,2.74,186.69,186.59,10.01457207]
[1760822892741,2.74,186.69,186.61,4.8215]
[1760822897643,2.74,186.69,186.62,4.821]
[1760822900042,2.74,186.69,186.63,4.8207]
[1760822903443,3.3377843,186.74,186.65,4.8205]
[1760822903444,2.65,186.74,186.65,4.8205]
[1760822903644,2.65,186.74,186.61,13.35235637]
[1760822903645,2.65,186.74,186.64,3.3377843]
[1760822903844,3.3377843,186.84,186.7,3.3377843]
[1760822903845,3.91164024,186.83,186.7,3.3377843]
[1760822904044,3.3377843,186.84,186.7,3.3377843]
[1760822904246,4.8171,186.79,186.7,3.3377843]
[1760822904553,2.65,186.78,186.7,3.3377843]
[1760822904739,4.8171,186.79,186.7,3.3377843]
[1760822905646,2.65,186.78,186.7,3.3377843]
[1760822905949,4.8171,186.79,186.7,3.3377843]
[1760822906642,2.65,186.78,186.7,3.3377843]
[1760822907042,4.8171,186.79,186.7,3.3377843]
[1760822907857,2.65,186.77,186.7,8.1567843]
[1760822908052,2.65,186.78,186.7,8.1567843]
[1760822908552,2.65,186.77,186.7,8.1567843]
[1760822908748,4.8171,186.79,186.7,8.1567843]
[1760822909047,2.65,186.78,186.7,8.1567843]
[1760822909252,4.8171,186.79,186.7,8.1567843]
[1760822909749,2.65,186.78,186.7,8.1567843]
[1760822909945,4.8171,186.79,186.7,8.1567843]
[1760822910146,2.65,186.77,186.7,8.1567843]
[1760822910352,2.65,186.78,186.7,8.1567843]
[1760822910548,2.65,186.77,186.7,8.1567843]
[1760822910748,2.65,186.78,186.7,8.1567843]
[1760822911149,4.8171,186.79,186.7,8.1567843]
[1760822911548,2.65,186.78,186.71,4.8188]
[1760822911950,4.8171,186.79,186.71,4.8188]
[1760822912445,2.65,186.78,186.71,4.8188]
[1760822912652,4.8171,186.79,186.71,4.8188]
[1760822912848,2.65,186.78,186.71,4.8188]
[1760822913053,4.8171,186.79,186.71,4.8188]
[1760822913652,2.65,186.78,186.71,4.8188]
[1760822914352,4.8171,186.79,186.71,4.8188]
[1760822914655,2.65,186.78,186.71,4.8188]
[1760822914854,4.8171,186.79,186.71,4.8188]
[1760822915257,2.65,186.78,186.71,4.8188]
[1760822915561,4.8171,186.79,186.71,4.8188]
[1760822915755,2.65,186.78,186.71,4.8188]
[1760822917155,4.8171,186.79,186.71,4.8188]
[1760822917350,2.65,186.78,186.71,4.8188]
[1760822917756,4.8171,186.79,186.71,4.8188]
[1760822918061,2.65,186.78,186.71,4.8188]
[1760822918362,4.8171,186.79,186.71,4.8188]
[1760822918563,2.65,186.78,186.71,4.8188]
[1760822918862,4.8173,186.78,186.71,4.8188]
[1760822919066,2.65,186.77,186.71,4.8188]
[1760822920261,4.8173,186.78,186.71,4.8188]
[1760822920650,2.65,186.77,186.71,4.8188]
[1760822921253,4.8173,186.78,186.71,4.8188]
[1760822921460,2.65,186.77,186.71,4.8188]
[1760822922564,4.8167,186.8,186.72,4.8185]
[1760822922864,2.65,186.79,186.73,3.3377843]
[1760822924063,2.65,186.79,186.74,4.818]
[1760822924463,4.8162,186.82,186.74,4.818]
[1760822924658,2.65,186.82,186.75,4.8177]
[1760822927569,2.69,186.82,186.75,4.8177]
[1760822927763,4.8157,186.84,186.75,4.8177]
[1760822927968,2.69,186.83,186.75,4.8177]
[1760822928465,4.8157,186.84,186.75,4.8177]
[1760822928768,2.69,186.83,186.75,4.8177]
[1760822931371,4.8157,186.84,186.75,4.8177]
[1760822931568,2.69,186.83,186.75,4.8177]
[1760822931771,2.69,186.82,186.75,4.8177]
[1760822931972,2.69,186.83,186.75,4.8177]
[1760822932273,4.8157,186.84,186.75,4.8177]
[1760822932473,2.69,186.83,186.75,4.8177]
[1760822932675,4.8157,186.84,186.75,4.8177]
[1760822932875,2.69,186.82,186.75,4.8177]
[1760822933074,2.69,186.83,186.75,4.8177]
[1760822933874,2.69,186.82,186.76,4.8175]
[1760822934273,2.69,186.83,186.76,4.8175]
[1760822935775,4.8157,186.84,186.76,4.8175]
[1760822936076,2.69,186.82,186.76,4.8175]
[1760822937279,2.69,186.82,186.77,4.8172]
[1760822938177,4.8157,186.84,186.77,4.8172]
[1760822938178,2.69,186.83,186.77,4.8172]
[1760822950698,4.8157,186.84,186.77,4.8172]
[1760822950997,2.73,186.83,186.77,4.8172]
[1760822951497,4.8157,186.84,186.77,4.8172]
[1760822951697,2.73,186.83,186.77,4.8172]
[1760822951892,4.8157,186.84,186.77,4.8172]
[1760822952093,2.73,186.83,186.77,4.8172]
[1760822952497,2.73,186.82,186.77,4.8172]
[1760822952693,2.73,186.83,186.77,4.8172]
[1760822953197,2.73,186.82,186.77,4.8172]
[1760822953393,2.73,186.83,186.77,4.8172]
[1760822953695,4.8157,186.84,186.77,4.8172]
[1760822953896,2.73,186.83,186.77,4.8172]
[1760822954397,4.8157,186.84,186.77,4.8172]
[1760822954601,2.73,186.83,186.77,4.8172]
[1760822954801,4.8157,186.84,186.77,4.8172]
[1760822954998,2.73,186.83,186.77,4.8172]
[1760822955294,2.73,186.82,186.77,4.8172]
[1760822955499,2.73,186.83,186.77,4.8172]
[1760822965600,2.68,186.81,186.75,10.01457207]
[1760822967004,4.816,186.83,186.76,4.8175]
[1760822967205,2.68,186.81,186.76,4.8175]
[1760822967405,2.68,186.82,186.76,4.8175]
[1760822968406,2.68,186.82,186.76,14.83207207]
[1760822975213,2.68,186.82,186.76,10.01457207]
[1760822976015,2.68,186.85,186.79,14.83127207]
[1760822978813,3.3377843,186.87,186.8,10.01457207]
[1760822979015,2.68,186.86,186.79,14.83127207]
[1760822980607,8.1526843,186.87,186.79,14.83127207]
[1760822981911,2.68,186.86,186.79,14.83127207]
[1760822982320,8.1526843,186.87,186.79,14.83127207]
[1760822982713,2.68,186.86,186.79,14.83127207]
[1760822984620,8.1526843,186.87,186.79,14.83127207]
[1760822985218,2.68,186.86,186.79,14.83127207]
[1760822986217,2.68,186.86,186.79,4.8167]
[1760822987721,2.68,186.86,186.79,14.83127207]
[1760822991726,2.68,186.86,186.8,4.8165]
[1760822992128,2.75,186.88,186.79,10.01457207]
[1760822992923,2.75,186.88,186.81,10.01457207]
[1760822993625,2.75,186.93,186.85,4.8152]
[1760822994322,2.75,186.92,186.85,4.8152]
[1760822996227,2.75,186.92,186.86,4.8149]
[1760822997322,2.75,186.93,186.87,4.8146]
[1760822997827,2.75,186.92,186.87,4.8146]
[1760822998030,7.5631,186.94,186.87,4.8146]
[1760822998331,2.75,186.92,186.88,4.8144]
[1760822998831,2.75,186.93,186.88,4.8144]
[1760822999731,4.8131,186.94,186.88,4.8144]
[1760823000129,2.75,186.93,186.88,4.8144]
[1760823000522,2.75,186.92,186.88,4.8144]
[1760823000724,2.75,186.93,186.86,4.815]
[1760823000931,8.1511843,186.93,186.86,4.815]
[1760823001123,2.75,186.92,186.86,4.815]
[1760823006828,2.75,186.92,186.87,4.8146]
[1760823007031,49.0126,186.96,186.87,4.8146]
[1760823007227,2.71,186.95,186.87,4.8146]
[1760823007925,49.0126,186.96,186.87,4.8146]
[1760823008833,2.71,186.95,186.87,4.8146]
[1760823009332,2.71,186.95,186.88,4.8144]
[1760823009724,2.71,186.95,186.87,3.3377843]
[1760823009927,2.71,186.95,186.87,13.35235637]
[1760823010236,2.71,186.95,186.87,3.3377843]
[1760823010533,2.71,186.95,186.88,6.64480991]
[1760823011032,2.71,186.95,186.9,4.8139]
[1760823013235,2.71,186.98,186.9,4.8139]
[1760823013736,2.71,186.97,186.9,4.8139]
[1760823013935,3.3377843,186.96,186.88,4.8144]
[1760823014127,2.71,186.95,186.88,4.8144]
[1760823014323,3.3377843,186.96,186.88,4.8144]
[1760823014524,2.71,186.95,186.88,4.8144]
[1760823015036,6.0477843,186.93,186.84,67.99785556]
[1760823015336,6.0477843,186.93,186.85,6.64480991]
[1760823016030,6.0477843,186.93,186.86,4.8149]
[1760823016336,2.71,186.92,186.86,4.8149]
[1760823019735,2.77,186.92,186.86,4.8149]
[1760823024138,2.77,186.92,186.87,4.8147]
[1760823024341,2.77,186.92,186.85,6.64480991]
[1760823024544,2.77,186.92,186.87,3.3377843]
[1760823026037,2.77,186.92,186.88,4.8144]
[1760823029237,2.77,186.95,186.89,4.8142]
[1760823031440,2.77,186.95,186.9,4.8139]
[1760823031743,4.812,186.98,186.9,4.8139]
[1760823031945,2.77,186.97,186.9,4.8139]
[1760823032137,2.77,186.96,186.9,4.8139]
[1760823032339,2.77,186.96,186.9,3.3377843]
[1760823034045,9.40778326,187.0,186.93,4.8131]
[1760823034939,2.77,186.99,186.93,4.8131]
[1760823035138,9.40778326,187.0,186.93,4.8131]
[1760823035545,2.77,186.99,186.93,4.8131]
[1760823035739,2.77,186.99,186.94,4.8129]
[1760823035945,9.40778326,187.0,186.94,4.8129]
[1760823036142,2.77,186.99,186.94,4.8129]
[1760823036536,9.40778326,187.0,186.94,4.8129]
[1760823036741,2.77,186.99,186.94,4.8129]
[1760823036937,9.40778326,187.0,186.94,4.8129]
[1760823037142,2.77,186.99,186.94,4.8129]
[1760823037345,9.40778326,187.0,186.94,4.8129]
[1760823037645,2.77,186.99,186.94,4.8129]
[1760823037838,9.40778326,187.0,186.94,4.8129]
[1760823038035,2.77,186.99,186.94,4.8129]
[1760823038442,2.77,186.99,186.9,3.3377843]
[1760823038443,2.77,186.99,186.95,4.8126]
[1760823040051,147.00103888,187.11,186.97,4.8121]
[1760823040052,2.77,187.03,186.97,4.8121]
[1760823044043,3.3377843,187.08,186.94,6.64480991]
[1760823044044,2.77,187.02,186.94,6.64480991]
[1760823044254,19.02830356,187.08,186.91,6.64480991]
[1760823044255,7.95851751,187.05,186.91,6.64480991]
[1760823044553,4.62073321,187.04,186.91,9.98259421]
[1760823044754,2.77,187.02,186.91,9.98259421]
[1760823044950,4.62073321,187.04,186.91,9.98259421]
[1760823045145,2.77,187.03,186.91,9.98259421]
[1760823045454,4.62073321,187.04,186.92,6.64480991]
[1760823046154,2.77,187.0,186.93,4.8131]
[1760823047655,2.73,187.0,186.93,4.8131]
[1760823047955,2.73,186.99,186.93,4.8131]
[1760823048150,2.73,187.0,186.93,4.8131]
[1760823048545,4.8117,187.0,186.91,9.98259421]
[1760823048750,2.73,186.98,186.91,9.98259421]
[1760823050055,2.73,186.99,186.91,9.98259421]
[1760823050245,2.73,186.98,186.91,9.98259421]
[1760823051252,2.73,186.98,186.91,6.64480991]
[1760823052252,2.73,186.98,186.91,11.45840991]
[1760823052848,2.73,186.98,186.92,4.8133]
[1760823053553,2.73,186.98,186.93,4.8131]
[1760823053954,2.73,186.98,186.94,4.8128]
[1760823054155,2.73,187.01,186.94,4.8128]
[1760823055551,2.73,187.01,186.95,4.8126]
[1760823055746,2.73,187.01,186.92,6.64480991]
[1760823056352,2.73,187.01,186.97,4.812]
[1760823059463,2.73,187.05,186.97,4.812]
[1760823059760,2.73,187.05,186.94,3.3377843]
[1760823060067,2.73,187.04,186.98,4.8118]
[1760823060660,2.73,187.05,186.99,4.8116]
[1760823060861,2.73,187.06,186.99,3.3377843]
[1760823061057,2.73,187.06,186.99,8.1493843]
[1760823061261,2.73,187.06,186.98,6.64480991]
[1760823061456,2.73,187.06,186.98,9.98259421]
[1760823061859,2.73,187.06,187.0,4.8113]
[1760823065569,2.73,187.06,186.98,3.3377843]
[1760823067071,2.86,187.06,187.02,4.8108]
[1760823067372,86.76529682,187.07,187.02,4.8108]
[1760823067574,2.86,187.09,187.03,4.8105]
[1760823067867,2.86,187.1,187.03,4.8105]
[1760823068066,3.3377843,187.11,187.03,4.8105]
[1760823068868,2.86,187.12,187.04,4.8103]
[1760823069070,3.3377843,187.12,187.04,4.8103]
[1760823069366,4.8082,187.13,187.01,6.64480991]
[1760823069570,8.1459843,187.13,187.01,6.64480991]
[1760823070163,8.1459843,187.13,187.0,6.64480991]
[1760823070473,2.86,187.12,187.0,6.64480991]
[1760823070773,8.1459843,187.13,187.0,6.64480991]
[1760823071072,8.1459843,187.13,186.98,13.35235637]
[1760823071073,3.3377843,187.13,187.05,4.81]
[1760823071473,2.86,187.12,187.05,4.81]
[1760823071675,2.86,187.12,187.01,9.98259421]
[1760823071870,47.4977843,187.15,187.01,6.64480991]
[1760823072266,2.86,187.14,187.01,6.64480991]
[1760823072870,3.3377843,187.12,187.05,4.81]
[1760823073069,3.3377843,187.12,187.0,9.98259421]
[1760823073275,2.86,187.11,186.99,6.64480991]
[1760823073574,3.3377843,187.12,186.99,6.64480991]
[1760823073776,2.86,187.11,186.99,6.64480991]
[1760823073976,4.8088,187.11,187.03,4.8106]
[1760823074472,2.86,187.1,187.03,4.8106]
[1760823074772,3.3377843,187.06,186.97,6.64480991]
[1760823074978,3.3377843,187.06,186.96,6.64480991]
[1760823075272,3.3377843,187.06,186.95,6.64480991]
[1760823075480,3.3377843,187.09,186.95,6.64480991]
[1760823075777,2.86,187.08,186.95,6.64480991]
[1760823075973,4.8099,187.07,186.98,4.8118]
[1760823076173,2.86,187.06,186.98,4.8118]
[1760823076872,2.83,187.05,186.98,4.8118]
[1760823077073,3.3377843,187.06,186.98,4.8118]
[1760823077279,2.83,187.05,186.98,4.8118]
[1760823077672,3.3377843,187.06,186.98,4.8118]
[1760823078077,8.1478843,187.06,186.98,4.8118]
[1760823078673,2.83,187.05,186.98,4.8118]
[1760823078969,8.1478843,187.06,186.98,4.8118]
[1760823079372,2.83,187.05,186.98,4.8118]
[1760823080081,2.83,187.02,186.96,4.8124]
[1760823080375,3.3377843,187.03,186.94,6.64480991]
[1760823080574,2.83,187.02,186.91,6.64480991]
[1760823080775,3.3377843,187.03,186.91,6.64480991]
[1760823080976,3.3377843,187.03,186.92,6.64480991]
[1760823081170,2.83,186.99,186.92,11.45820991]
[1760823081573,3.3377843,187.0,186.92,11.45820991]
[1760823081774,3.3377843,187.0,186.91,6.64480991]
[1760823081974,2.83,186.99,186.91,6.64480991]
[1760823082177,3.3377843,187.0,186.9,6.64480991]
[1760823082776,2.83,186.99,186.9,6.64480991]
[1760823082977,2.83,186.99,186.9,11.45860991]
[1760823083378,8.1493843,187.0,186.9,11.45860991]
[1760823083982,2.83,186.98,186.91,4.8136]
[1760823087089,8.1493843,187.0,186.91,4.8136]
[1760823087289,2.83,186.99,186.91,4.8136]
[1760823087978,2.83,186.99,186.87,10.01457207]
[1760823087979,2.83,186.97,186.89,11.45900991]
[1760823088182,2.83,186.98,186.89,11.45900991]
[1760823088485,4.8119,186.99,186.89,11.45900991]
[1760823088690,2.83,186.98,186.89,11.45900991]
[1760823089183,4.8119,186.99,186.89,11.45900991]
[1760823089377,2.83,186.98,186.89,11.45900991]
[1760823089588,4.8119,186.99,186.89,11.45900991]
[1760823089788,2.83,186.98,186.89,11.45900991]
[1760823090089,2.83,186.97,186.9,4.8138]
[1760823091189,2.83,186.98,186.9,4.8138]
[1760823091382,2.83,186.97,186.88,11.45930991]
[1760823091578,3.3377843,186.97,186.88,11.45930991]
[1760823091786,2.83,186.96,186.88,11.45930991]
[1760823092294,8.1501843,186.97,186.88,11.45930991]
[1760823093789,2.83,186.96,186.88,11.45930991]
[1760823094692,8.1501843,186.97,186.88,11.45930991]
[1760823095087,2.83,186.96,186.88,11.45930991]
[1760823095287,8.1501843,186.97,186.88,11.45930991]
[1760823096393,2.83,186.96,186.89,3.3377843]
[1760823096796,2.83,187.04,186.89,3.3377843]
[1760823097092,2.83,187.0,186.89,9.98259421]
[1760823097282,2.83,187.0,186.9,6.64480991]
[1760823098193,2.83,187.0,186.93,4.8131]
[1760823099898,2.83,187.0,186.94,4.8129]
[1760823100996,2.83,186.99,186.94,4.8129]
[1760823101197,4.8112,187.01,186.94,4.8129]
[1760823101198,2.83,187.0,186.94,4.8129]
[1760823101400,4.8112,187.01,186.94,4.8129]
[1760823101601,2.83,187.0,186.94,4.8129]
[1760823102094,4.8112,187.01,186.94,4.8129]
[1760823102300,2.83,187.0,186.94,4.8129]
[1760823102491,2.83,186.99,186.94,4.8129]
[1760823102796,2.83,187.0,186.94,4.8129]
[1760823102996,4.8112,187.01,186.94,4.8129]
[1760823103199,2.83,187.0,186.94,4.8129]
[1760823103599,4.8112,187.01,186.94,4.8129]
[1760823103600,2.83,186.99,186.94,4.8129]
[1760823103800,2.83,187.0,186.94,4.8129]
[1760823103998,2.83,186.99,186.94,4.8129]
[1760823104199,4.8112,187.01,186.94,4.8129]
[1760823104200,2.83,187.0,186.94,4.8129]
[1760823104602,2.83,186.99,186.94,4.8129]
[1760823104804,2.83,187.0,186.94,4.8129]
[1760823105003,4.8112,187.01,186.94,4.8129]
[1760823105201,2.83,187.0,186.94,4.8129]
[1760823106001,4.8112,187.01,186.94,4.8129]
[1760823106304,2.83,187.0,186.94,4.8129]
[1760823106909,2.81,187.02,186.92,3.3377843]
[1760823107107,2.81,187.02,186.92,9.98259421]
[1760823107401,2.81,187.07,186.95,3.3377843]
[1760823107598,2.81,187.07,186.98,3.3377843]
[1760823109004,2.81,187.07,187.01,4.8111]
[1760823109605,2.81,187.07,186.99,4.8116]
[1760823109805,2.81,187.06,186.99,4.8116]
[1760823111811,2.81,187.06,187.0,4.8113]
[1760823116816,2.81,187.07,187.0,4.8113]
[1760823118415,2.81,187.07,187.01,4.8111]
[1760823126632,2.76,187.08,187.01,4.8111]
[1760823126819,4.8093,187.09,187.01,4.8111]
[1760823126820,2.76,187.07,187.01,4.8111]
[1760823128718,4.8095,187.08,187.01,4.8111]
[1760823128918,2.76,187.07,187.01,4.8111]
[1760823129117,4.8095,187.08,187.01,4.8111]
[1760823129321,2.76,187.07,187.01,4.8111]
[1760823130321,4.8095,187.08,187.01,4.8111]
[1760823130520,2.76,187.07,187.01,4.8111]
[1760823130929,4.8095,187.08,187.01,4.8111]
[1760823131127,2.76,187.06,187.01,4.8111]
[1760823131524,2.76,187.07,187.01,4.8111]
[1760823136328,2.77,187.06,187.01,4.8111]
[1760823136628,2.77,187.07,187.01,4.8111]
[1760823138129,2.77,187.07,187.02,4.8108]
[1760823138727,4.8095,187.08,187.02,4.8108]
[1760823138928,2.77,187.09,187.0,6.64480991]
[1760823139328,2.77,187.12,187.07,4.8095]
[1760823139530,2.77,187.14,187.07,4.8095]
[1760823139822,4.67794758,187.16,187.07,4.8095]
[1760823140029,2.77,187.14,187.07,4.8095]
[1760823140232,9.48594758,187.14,187.07,4.8095]
[1760823140427,2.77,187.13,187.07,4.8095]
[1760823140926,2.77,187.13,187.02,6.64480991]
[1760823140927,4.8083,187.13,187.05,4.81]
[1760823141124,2.77,187.12,187.05,4.81]
[1760823141328,3.3377843,187.14,187.05,4.81]
[1760823141520,2.77,187.13,187.05,4.81]
[1760823141931,4.8085,187.12,187.05,4.81]
[1760823142126,2.77,187.11,187.05,4.81]